Cogmind - Beta 15 @@@ ROGUE MODE // 2025.08.07 @ 18:50:13 Player: Moritz Result: Self-destructed Performance ------------- Evolutions (2) 1000 Regions Visited (4) 800 Robots Destroyed (20) 100 Value Destroyed (383) 383 Prototype IDs (2) 40 Alien Tech Used (0) 0 Bonus (0) 0 TOTAL SCORE: 2323 Bonus ------- None Cogmind --------- Core Integrity 342/550 Matter 205/300 Energy 160/160 System Corruption 0% Temperature Cool (9) Movement Core (100) Ox1 Location -8/Materials Parts ------- > --- POWER (1) -------- Light Nuclear Core > --- PROPULSION (5) --- (None) > --- UTILITY (3) ------ Improved Terrain Scanner > --- WEAPON (2) ------- (None) > --- INVENTORY (5) ---- Light Ion Engine Light Nuclear Core Peak State ------------ > --- POWER ------------ Light Ion Engine > --- PROPULSION ------- Aluminum Leg Aluminum Leg Flight Unit Flight Unit > --- UTILITY ---------- Small Storage Unit Improved Terrain Scanner > --- WEAPON ----------- Light Assault Rifle Light Assault Rifle > --- INVENTORY -------- Light Ion Engine Light Ion Engine Flight Unit Flight Unit Flight Unit ECM Suite [Rating: 11] Favorites ----------- Power Light Ion Engine Engine Light Ion Engine Power Core Light Nuclear Core Propulsion Flight Unit Leg Aluminum Leg Flight Unit Flight Unit Utility Small Storage Unit Device Improved Terrain Scanner Storage Small Storage Unit Weapon Light Assault Rifle Ballistic Gun Light Assault Rifle Special Weapon Mining Laser Build | -11 -10 -9 -9 -8 ------- Run | Yrd Mat Mat Min Mat Slots Evolved 4 | . . 2 . 2 Power . | . . . . . Propulsion 3 | . . 2 . 1 Utility 1 | . . . . 1 Weapon . | . . . . . Parts Attached 30 | 8 6 11 1 4 Power 5 | 1 . 2 . 2 Engine 4 | 1 . 2 . 1 Core 1 | . . . . 1 Reactor . | . . . . . Propulsion 12 | 2 4 6 . . Treads . | . . . . . Leg 4 | 2 2 . . . Wheel . | . . . . . Hover . | . . . . . Flight 8 | . 2 6 . . Utility 4 | 2 . 1 . 1 Device 3 | 1 . 1 . 1 Storage 1 | 1 . . . . Processor . | . . . . . Hackware . | . . . . . Protection . | . . . . . Artifact . | . . . . . Weapon 9 | 3 2 2 1 1 Energy Gun . | . . . . . Energy Cannon . | . . . . . Ballistic Gun 8 | 3 2 2 . 1 Ballistic Cannon . | . . . . . Launcher . | . . . . . Special Weapon 1 | . . . 1 . Impact Weapon . | . . . . . Slashing Weapon . | . . . . . Piercing Weapon . | . . . . . Special Melee Weapon . | . . . . . Unidentified Prototypes . | . . . . . Parts Lost 13 | . . 2 7 4 Power 2 | . . . 2 . Propulsion 7 | . . 2 4 1 Utility 2 | . . . . 2 Weapon 2 | . . . 1 1 Highest Loss Streak 7 | . . 2 7 3 To Critical Strikes . | . . . . . Average Backups 6 | 4 6 6 6 3 Power 1 | . 1 2 2 2 Propulsion 2 | 2 4 2 . . Utility 1 | . . 1 2 1 Weapon . | . . . . . Tool/Special . | . . . . . Unused Backups 8 | . 6 . . 2 Power 2 | . 1 . . 1 Propulsion 4 | . 4 . . . Utility 1 | . . . . 1 Weapon 1 | . 1 . . . Tool/Special . | . . . . . Average Slot Usage (%) 88 | . 99 99 92 22 Engine 10 | . 14 11 10 . Leg 11 | . 26 2 . . Flight 19 | . . 41 39 7 Device 12 | . 14 11 11 10 Storage 10 | . 14 11 10 . Ballistic Gun 20 | . 27 22 15 3 Peak Build Rating 11 | 9 9 11 10 6 Average Rating 8 | 5 8 10 9 3 On Entrance 6 | . 9 9 10 3 Naked Turns . | . . . . . Heaviest Build 13 | 12 13 12 12 6 Greatest Support 20 | 20 20 16 16 4 Greatest Overweight (x) 3 | . 3 . . 1 Average Overweight (x) . | . . . . . Largest Inventory Capacity 8 | 8 8 8 8 5 Average Capacity 7 | 7 8 8 7 5 Most Carried 8 | 6 8 8 8 5 Average Carried 6 | 4 6 6 6 3 Final Capacity 8 | 8 8 8 5 5 Final Carried 8 | 6 8 6 5 2 Class Distribution -------------------- 64% | Mutant 22% | Scavenger-Mutant 13% | Scavenger-Sprinter Dominant Class ---------------- Mutant | -10/Materials Scavenger-Sprinter | -9/Materials Scavenger-Mutant | -9/Mines Mutant | -8/Materials Resources | -11 -10 -9 -9 -8 ----------- Run | Yrd Mat Mat Min Mat Matter Collected 655 | 253 201 160 30 11 Remotely . | . . . . . Salvage Created 529 | 54 221 199 12 43 Parts 41 | 6 12 19 . 4 Haulers Intercepted . | . . . . . Recyclers Shooed 1 | . 1 . . . Parts Field Recycled . | . . . . . Retrieved Matter . | . . . . . Parts Self-Destructed . | . . . . . Prevented . | . . . . . Kills | -11 -10 -9 -9 -8 ------- Run | Yrd Mat Mat Min Mat Combat Hostiles Destroyed 18 | . 5 9 1 3 Guns 18 | . 5 9 1 3 Classes Destroyed 4 | 1 1 1 1 . Tunneler 3 | 3 . . . . Swarmer 9 | . . 6 . 3 Grunt 8 | . 5 3 . . Assembled 1 | . . . 1 . Best Kill Streak 3 | 2 3 3 1 3 Combat Bots Only 3 | . 3 3 1 3 Max Kills in Single Turn 2 | 1 1 2 1 1 Gunslinging 1 | . . 1 . . Exploded . | . . . . . Melee . | . . . . . Uniques/NPCs Destroyed . | . . . . . Combat | -11 -10 -9 -9 -8 -------- Run | Yrd Mat Mat Min Mat Hostile Shots Fired 164 | . 33 50 24 57 Missed 70 | . 13 29 12 16 Hits 94 | . 20 21 12 41 Melee 1 | . . . 1 . Projectile 93 | . 20 21 11 41 AOE 4 | . . . 4 . Critical Strikes 2 | . . . . 2 Damage Taken 1225 | . 218 261 320 426 Core 463 | . 66 82 107 208 Absorbed by Shields . | . . . . . Core Remaining (%) 75 | 100 73 . 52 . Volleys Fired 70 | 6 18 20 7 19 Largest 2 | 2 2 2 2 1 Hottest 120 | 40 40 40 120 23 Shots Fired 117 | 12 36 40 10 19 Gun 112 | 12 36 40 5 19 Cannon . | . . . . . Launcher . | . . . . . Special 5 | . . . 5 . Kinetic 112 | 12 36 40 5 19 Thermal 5 | . . . 5 . Explosive . | . . . . . Electromagnetic . | . . . . . Robot Hit Streak 6 | 5 5 6 1 4 Robot Miss Streak 5 | 1 5 3 1 3 Penetration Max . | . . . . . Secondary Targets 5 | . 2 3 . . Max Gunslinging Chain 1 | . 1 1 . . Shots Hit Robots 55 | 7 17 20 2 9 Core Hits 35 | 5 11 14 1 4 Critical Kills . | . . . . . Critical Parts Destroyed . | . . . . . Critical Strikes . | . . . . . Melee Attacks . | . . . . . Impact . | . . . . . Slashing . | . . . . . Piercing . | . . . . . Sneak Attacks . | . . . . . Combat Hostiles . | . . . . . Follow-up Attacks . | . . . . . Damage Inflicted 594 | 73 193 175 18 135 Guns 594 | 73 193 175 18 135 Cannons . | . . . . . Explosions . | . . . . . Melee . | . . . . . Ramming . | . . . . . Kinetic 594 | 73 193 175 18 135 Thermal . | . . . . . Explosive . | . . . . . Electromagnetic . | . . . . . Impact . | . . . . . Slashing . | . . . . . Piercing . | . . . . . Highest Corruption 1 | . . . 1 . Average Corruption 1 | . . . 1 . Corruption Purged . | . . . . . Corruption Blocked . | . . . . . Overload Shots . | . . . . . Overflow Damage . | . . . . . Projectiles . | . . . . . Explosions . | . . . . . Melee . | . . . . . Knockbacks . | . . . . . Impact . | . . . . . Kinetic . | . . . . . Secondary . | . . . . . Self-Inflicted Damage . | . . . . . Shots . | . . . . . Rammed . | . . . . . Targets Rammed . | . . . . . Kicked . | . . . . . Crushed . | . . . . . Highest Temperature 60 | . 12 17 60 6 Average Temperature 15 | . 6 4 29 4 Received Heat Transfer 291 | . 120 45 . 126 Siege Activations . | . . . . . Martial Activations . | . . . . . Shielding Activations . | . . . . . Robots Disrupted . | . . . . . Combat Hostiles . | . . . . . Robots Corrupted . | . . . . . Combat Hostiles . | . . . . . Parts Fried . | . . . . . Impact Corruptions . | . . . . . Robots Melted . | . . . . . Combat Hostiles . | . . . . . Parts Melted . | . . . . . Heat Transferred . | . . . . . Parts Sabotaged . | . . . . . Parts Stolen . | . . . . . Parts Stripped . | . . . . . Power Chain Reactions . | . . . . . Alert | -11 -10 -9 -9 -8 ------- Run | Yrd Mat Mat Min Mat Maximum Alert Level 1 | . . 1 . . Low Security (%) 96 | 100 100 85 100 100 Level 1 3 | . . 14 . . Level 2 . | . . . . . Level 3 . | . . . . . Level 4 . | . . . . . Level 5 . | . . . . . High Security . | . . . . . Max Security . | . . . . . Peak Influence 218 | 10 70 218 84 70 Initial 84 | . 3 20 84 . Average 44 | 1 11 136 47 15 Influence Increases 538 | 15 110 318 8 87 Destroy 0b10 Robot/C 340 | . 100 180 . 60 Destroy 0b10 Robot/NC 20 | 15 . . 5 . Destroy Leader 50 | . 10 30 . 10 Successful Hack 35 | . . 33 . 2 Destroy Structure 3 | . . . 3 . Partial Spotted 60 | . . 45 . 15 Lose Combat Pursuer 30 | . . 30 . . Influence Decreases 518 | 10 65 150 226 67 Entered New Map 166 | . 2 30 134 . Time Decay 265 | 10 63 100 60 32 Lost Part 67 | . . 20 12 35 Lost Ally 20 | . . . 20 . Squads Dispatched 4 | . 1 2 . 1 Investigation 2 | . 1 1 . . Extermination . | . . . . . Reinforcement 2 | . . 1 . 1 Assault . | . . . . . Garrison . | . . . . . Intercept . | . . . . . Searches Triggered . | . . . . . Construction Impeded 1 | . . 1 . . Haulers Reinforced . | . . . . . Active Scanning Responses . | . . . . . Cargo Convoy Interrupts . | . . . . . Stealth | -11 -10 -9 -9 -8 --------- Run | Yrd Mat Mat Min Mat Distress Signals . | . . . . . Communications Jammed . | . . . . . Distress Signals . | . . . . . Times Spotted 54 | . 8 19 19 8 Peak Tracking Total 18 | . 3 9 18 8 Tactical Retreats 6 | . . 3 3 . Traps | -11 -10 -9 -9 -8 ------- Run | Yrd Mat Mat Min Mat Traps Triggered 2 | . 1 1 . . Indirectly . | . . . . . Trap Hack Attempts . | . . . . . Triggered . | . . . . . Disarmed . | . . . . . Reprogrammed . | . . . . . Reused 1 | . . . 1 . Traps Extracted . | . . . . . Installed 2 | . . . 2 . Triggered . | . . . . . Most Traps Carried 1 | . . . 1 . Machines | -11 -10 -9 -9 -8 ---------- Run | Yrd Mat Mat Min Mat Machines Disabled . | . . . . . Max in Single Turn . | . . . . . Machines Repaired . | . . . . . Machines Dismantled . | . . . . . Machines Sabotaged . | . . . . . Overloaded Fab Kills . | . . . . . Hacking | -11 -10 -9 -9 -8 --------- Run | Yrd Mat Mat Min Mat Machines Accessed 9 | . 4 4 . 1 Terminals 6 | . 4 2 . . Fabricators . | . . . . . Repair Stations 1 | . . 1 . . Recycling Units . | . . . . . Scanalyzers 2 | . . 1 . 1 Garrison Access . | . . . . . Total Hacks 35 | . 11 19 . 5 Successful 29 | . 8 16 . 5 Failed 6 | . 3 3 . . Catastrophic . | . . . . . Database Lockouts . | . . . . . Manual . | . . . . . Terminals 18 | . 11 7 . . Fabricators . | . . . . . Repair Stations 2 | . . 2 . . Recycling Units . | . . . . . Scanalyzers 15 | . . 10 . 5 Garrison Access . | . . . . . Terminal Hacks 13 | . 8 5 . . Record 3 | . 1 2 . . Robot Analysis 2 | . 1 1 . . Prototype ID Bank 1 | . 1 . . . Emergency Access Points 1 | . 1 . . . Terminal Index 1 | . 1 . . . Alert Level 3 | . 3 . . . Locate Traps 1 | . . 1 . . Zone Layout 1 | . . 1 . . Fabricator Hacks . | . . . . . Repair Station Hacks 1 | . . 1 . . Scan Component 1 | . . 1 . . Recycling Unit Hacks . | . . . . . Scanalyzer 15 | . . 10 . 5 Insert Component 7 | . . 5 . 2 Analyze 8 | . . 5 . 3 Garrison Access Hacks . | . . . . . Unauthorized Hacks . | . . . . . Terminals . | . . . . . Fabricators . | . . . . . Repair Stations . | . . . . . Recycling Units . | . . . . . Scanalyzers . | . . . . . Garrison Access . | . . . . . Data Cores Recovered . | . . . . . Used . | . . . . . Hacking Detections 7 | . 4 2 . 1 Full Trace Events 1 | . . 1 . . Feedback Events . | . . . . . Feedback Blocked . | . . . . . Robot Schematics Acquired . | . . . . . Robots Built . | . . . . . Authchips . | . . . . . Time . | . . . . . Total Robot Build Rating . | . . . . . Part Schematics Acquired 7 | . . 5 . 2 Parts Built . | . . . . . Authchips . | . . . . . Time . | . . . . . Total Part Build Rating . | . . . . . Parts Repaired . | . . . . . Time . | . . . . . Parts Recycled . | . . . . . Recycled Matter . | . . . . . Retrieved Matter . | . . . . . Retrieved Components . | . . . . . Parts Scanalyzed 7 | . . 5 . 2 Part Schematics Acquired 7 | . . 5 . 2 Parts Damaged . | . . . . . Bothacking | -11 -10 -9 -9 -8 ------------ Run | Yrd Mat Mat Min Mat Used RIF Installer . | . . . . . Robots Hacked . | . . . . . Non-combat . | . . . . . Combat . | . . . . . Robot Hacks Applied . | . . . . . Relay Couplers Released . | . . . . . Fabnet Peak Effective % . | . . . . . Robots Rewired . | . . . . . Allies Hacked . | . . . . . Hacks Repelled . | . . . . . Allies | -11 -10 -9 -9 -8 -------- Run | Yrd Mat Mat Min Mat Total Allies 1 | . . . 1 . Largest Group 1 | . . . 1 . Highest-Rated Group 31 | . . . 31 . Highest-Rated Ally 31 | . . . 31 . Total Orders . | . . . . . Ally Attacks 10 | . . . 10 . Total Damage 84 | . . . 84 . Kills 3 | . . . 3 . Allies Corrupted 1 | . . . 1 . Allies Melted . | . . . . . Intel | -11 -10 -9 -9 -8 ------- Run | Yrd Mat Mat Min Mat Active Infowar (turns) 705 | 11 350 207 77 60 Terrain 443 | 11 350 75 . 7 ECM 262 | . . 132 77 53 Robot Analysis Total 2 | . 1 1 . . Derelict Logs Recovered 2 | . . . 2 . Drone Launches . | . . . . . Drone Recoveries . | . . . . . Exploration | -11 -10 -9 -9 -8 ------------- Run | Yrd Mat Mat Min Mat Turns Passed 934 | 117 350 207 154 106 Spaces Moved 1043 | 72 227 319 282 143 Core 17 | 4 . . . 13 Treads . | . . . . . Legs 292 | 68 224 . . . Wheels . | . . . . . Hover . | . . . . . Flight 734 | . 3 319 282 130 Fastest Speed 31 | 50 117 31 31 40 Average Speed 59 | 116 121 33 34 43 Slowest Speed 280 | 120 280 34 40 100 Overloaded Moves . | . . . . . Propulsion Burnouts . | . . . . . Robots Hopped 1 | . . 1 . . Potential Cave-ins . | . . . . . Cave-ins Triggered . | . . . . . Exploration Rate (%) 29 | 4 43 25 58 18 Regions Visited 4 Branch Regions 1 Pre-discovered Areas . | . . . . . Known Exits Taken . | . . . . . Unknown Exits Taken 4 | 1 1 1 1 . Scrap Searched 1 | . . . 1 . Spaces Dug 3 | . . . 3 . Terrain Destroyed 3 | . . . 3 . Melee . | . . . . . Projectile 3 | . . . 3 . AOE . | . . . . . Terrain Rammed . | . . . . . Walls Destroyed . | . . . . . Machines Disabled . | . . . . . Actions | -11 -10 -9 -9 -8 --------- Run | Yrd Mat Mat Min Mat Total 1244 | 90 275 389 319 171 Wait 43 | . . 24 17 2 Move 1037 | 71 226 316 281 143 Hop 1 | . . 1 . . Pick Up 25 | 5 8 7 4 1 Fast Attach 11 | 7 3 . . 1 Attach 15 | . 3 7 2 3 Detach 4 | . 4 . . . Swap 12 | 1 2 6 2 1 Drop 24 | . 11 8 4 1 Fire 70 | 6 18 20 7 19 Melee . | . . . . . Ram . | . . . . . Kick . | . . . . . Crush . | . . . . . Escape Stasis . | . . . . . Rewire . | . . . . . Trap 2 | . . . 2 . Miscellaneous . | . . . . . Route ------- -11/Scrapyard -10/Materials -9/Materials -9/Mines -8/Materials (discovered 2 exits: Fac x2) History --------- Turn | Location | Event 5 | -11/Scrapyard | Discovered new exit (range 15) 118 | -11/Scrapyard | Entered Materials 298 | -10/Materials | Discovered new exit (range 16) 310 | -10/Materials | Build established: Mutant 468 | -10/Materials | Entered another Materials area 468 | -9/Materials | Evolved 2 slots: Propulsion x2 666 | -9/Materials | Discovered new exit (range 15) 675 | -9/Materials | Entered Mines 687 | -9/Mines | Received a Mining Laser from a helpful Derelict 760 | -9/Mines | Assembled infested the area 766 | -9/Mines | Found a hidden stash of uninstalled traps 823 | -9/Mines | Discovered new exit (range 5) 826 | -9/Mines | Learned location of 1 exit from Materials 829 | -9/Mines | Entered Materials 829 | -8/Materials | Evolved 2 slots: Propulsion x1, Utility x1 830 | -8/Materials | Identified exit to Factory 842 | -8/Materials | Lost 7 parts (2p4n1w) 935 | -8/Materials | Self-destructed Last Messages --------------- Schematic downloaded. >>Insert(Imp. Terrain Scanner) Scanning Imp. Terrain Scanner... Ready to analyze. >>Scanalyze Scanning: Imp. Terrain Scanner... Schematic downloaded. Acquired Autogun. Critical hit (Burn: +37). K-01 Serf collects debris. ECM Suite destroyed. ALERT: Hostiles spotted, dispatching reinforcements to Terminal M009. S-10 Pest destroyed. ECM Suite destroyed. Flight Unit destroyed. Acquired Lgt. Ion Engine. Processing Tank disabled. Acquired 11 matter. Autogun destroyed. Map ----- +----------------------------------------------------+ | | | | | | | | | | | | | | | | | | | | | ?????????????????????????????????????????????????? | | ?????????????????????????????????????????????????? | | ?????????????????????????????????????????????????? | | ?????????????????????????????????????????????????? | | ?????????????????????????????????????????????????? | | ?????????????????????????????????????????????????? | | ???????????????????????????????#?????????????????? | | ?????????????????????????????????????????????????? | | ?????????#????????#######????????????????????????? | | ????????? ####### #???????#????????????????? | | ??????????? #????????????????????????? | | ????????????? T #????????##########??????? | | ???????????????? #???????# #??????? | | ??????????????????# #???????# """ """ #??????? | | ???????????????????# ########## """ """ #??????? | | ???????????????????# # @ # """ """ #??????? | | ???????????????????# #mgs # """ """ #??????? | | ???????????????????# */mY"""" # #??????? | | ???????????????????# =#Y""""" # #??????? | | ???????????????????# [+%""""" # #??????? | | ???????????????????# ##############+############ | | ???????????????????### ############# | | ?????????????????????# # + | | ????????????] "??????# # #### | | ???????????? """????# # #??# ########### | | ??????????# """ ### # #??# #?????????? | | ?????????# / + # #??# #?????????? | | ??????????# [[ ! ### # #??# #?????????? | | ??????????# [[ ????# # #??# #?????????? | | ??????????# ??????# # #??# #?????????? | | ??????????# ????????# # #??# ##????????? | | ??????????#????+###### ########+### #????????? | | ???????? #????????? | | ???????? #????????? | | ???????? #????????? | | ????????? ##### ###############+### #????????? | | ??????????????#??????????# #######????????? | | ?????????????????????????# """#??????????????? | | ?????????????????????????# """#??????????????? | | ?????????????????????????# """#??????????????? | +----------------------------------------------------+ Best States ------------- Heat Dissipation 31 Energy Generation 14 Energy Capacity 160 Matter Stores 300 Matter Capacity 300 Sight Range 16 Terrain Scan Range 16 Terrain Scan Density 10 ECM Strength 2 Evasion (%) 63 Item Schematics ----------------- Flight Unit | -9/Materials | Scanalyzed ECM Suite | -9/Materials | Scanalyzed Lgt. Ion Engine | -9/Materials | Scanalyzed Weight Redist. System | -9/Materials | Scanalyzed Aluminum Leg | -9/Materials | Scanalyzed Lgt. Nuclear Core | -8/Materials | Scanalyzed Imp. Terrain Scanner | -8/Materials | Scanalyzed Robot Schematics ------------------ None Fabricated ------------ Nothing Repaired ---------- Nothing Alien Tech Used ----------------- None Achievements -------------- I Survived The Infestation Challenges ------------ None Game ------ Seed SurgeAccelerationJetlance Manual? 0 Play Time 00:32:20 Cumulative 4.9 hours Start 2025.08.06 @ 20:21:53 End 2025.08.07 @ 18:50:13 Sessions 3 Manual Loads 0 Difficulty Rogue Special Mode None Game No. 6 Rogue 6 Adventurer 0 Explorer 0 Win Type - Total 0 Types 0/0/0/0/0/0/0/0/0/0 Lore% 2 Gallery% 8 Achievement% 9 Wizard Run 0 Options --------- Layout 1 ASCII 0 Keyboard 0 Movement Mouse Keybinds 0 Fullscreen 1 Font 24/Smallcaps Map View 50x35 Zoom Use 0% Tactical HUD 0 Map Filters NONE Filters NONE Steam 1 RUN: 719d17d2-aa3b-4369-8410-7ac60372abb5